bitfinex-derivatives/quotes_BTCF0:USTF0_20230702
["timestamp","ask_amount","ask_price","bid_price","bid_amount"]
[1688326030623,0.0841524,30576.0,30575.0,0.64685369]
[1688326035421,0.01649064,30576.0,30575.0,0.64685369]
[1688326035627,0.02488909,30576.0,30575.0,0.64685369]
[1688326036532,0.35105312,30576.0,30575.0,0.64685369]
[1688326036934,0.43563109,30576.0,30575.0,0.64685369]
[1688326037125,0.35105312,30576.0,30575.0,0.64685369]
[1688326037846,0.02488909,30576.0,30575.0,0.64685369]
[1688326046741,0.01649064,30576.0,30575.0,0.64685369]
[1688326050334,0.14469357,30583.0,30575.0,0.89505369]
[1688326050637,0.14469357,30583.0,30582.0,0.267119]
[1688326050638,0.45969357,30583.0,30582.0,0.267119]
[1688326050831,0.14469357,30583.0,30582.0,0.28534869]
[1688326051338,0.11789505,30583.0,30582.0,0.28534869]
[1688326051645,0.3608,30585.0,30582.0,0.28534869]
[1688326051646,0.315,30584.0,30582.0,0.28534869]
[1688326051902,0.315,30584.0,30583.0,0.26502969]
[1688326052138,0.315,30584.0,30583.0,0.28464869]
[1688326054240,0.315,30584.0,30583.0,0.266419]
[1688326054647,0.587218,30584.0,30583.0,0.019619]
[1688326054833,0.60606745,30584.0,30583.0,0.019619]
[1688326062689,0.60606745,30584.0,30583.0,0.266419]
[1688326062838,0.59956745,30584.0,30583.0,0.266419]
[1688326063044,0.96036745,30584.0,30583.0,0.266419]
[1688326063846,0.97364681,30584.0,30583.0,0.266419]
[1688326064048,0.72754681,30584.0,30583.0,0.267819]
[1688326064245,0.70869736,30584.0,30583.0,0.267819]
[1688326064866,0.70869736,30584.0,30583.0,0.28604869]
[1688326065960,0.70869736,30584.0,30583.0,0.267819]
[1688326066849,0.70869736,30584.0,30583.0,0.28604869]
[1688326067257,0.70869736,30584.0,30583.0,0.267819]
[1688326067651,0.34789736,30584.0,30583.0,0.267819]
[1688326068154,0.70869736,30584.0,30583.0,0.267819]
[1688326069951,1.05330297,30584.0,30583.0,0.267819]
[1688326071659,1.13786858,30584.0,30583.0,0.267819]
[1688326071852,0.81211242,30584.0,30583.0,0.267819]
[1688326072622,0.97464681,30584.0,30583.0,0.267819]
[1688326074054,1.30128079,30584.0,30583.0,0.267819]
[1688326074353,1.38584822,30584.0,30583.0,0.267819]
[1688326074754,1.02504822,30584.0,30583.0,0.267819]
[1688326074953,1.38584822,30584.0,30583.0,0.267819]
[1688326075757,1.05921424,30584.0,30583.0,0.267819]
[1688326082764,1.05801424,30584.0,30583.0,0.267819]
[1688326083067,0.97344681,30584.0,30583.0,0.267819]
[1688326087156,0.61264681,30584.0,30583.0,0.267819]
[1688326087356,0.97344681,30584.0,30583.0,0.267819]
[1688326088968,1.07492119,30584.0,30583.0,0.267819]
[1688326089937,0.81017174,30584.0,30583.0,0.267819]
[1688326090167,0.70869736,30584.0,30583.0,0.267819]
[1688326091566,0.81017174,30584.0,30583.0,0.267819]
[1688326091759,0.70869736,30584.0,30583.0,0.267819]
[1688326092174,0.81017174,30584.0,30583.0,0.267819]
[1688326092353,0.70869736,30584.0,30583.0,0.267819]
[1688326092554,0.68907936,30584.0,30583.0,0.267819]
[1688326092953,0.70869736,30584.0,30583.0,0.267819]
[1688326096568,0.70869736,30584.0,30583.0,0.28604869]
[1688326096873,0.70869736,30584.0,30583.0,0.267819]
[1688326101084,0.72754681,30584.0,30583.0,0.267819]
[1688326101977,0.36674681,30584.0,30583.0,0.267819]
[1688326102170,0.72754681,30584.0,30583.0,0.267819]
[1688326103172,0.70869736,30584.0,30583.0,0.267819]
[1688326103478,0.70869736,30584.0,30583.0,0.28604869]
[1688326103780,0.70869736,30584.0,30583.0,0.267819]
[1688326104478,1.10098668,30584.0,30583.0,0.28604869]
[1688326104675,1.10098668,30584.0,30583.0,0.267819]
[1688326105270,1.10098668,30584.0,30583.0,0.28604869]
[1688326105482,1.10098668,30584.0,30583.0,0.267819]
[1688326108072,0.78598668,30584.0,30583.0,0.28604869]
[1688326108674,0.76636868,30584.0,30583.0,0.28604869]
[1688326108872,0.01327936,30584.0,30583.0,0.28604869]
[1688326109082,0.09783619,30584.0,30583.0,0.28604869]
[1688326111071,0.01327936,30584.0,30583.0,0.28604869]
[1688326111673,0.09783665,30584.0,30583.0,0.28604869]
[1688326126079,0.1166861,30584.0,30583.0,0.267819]
[1688326127479,0.09783665,30584.0,30583.0,0.28604869]
[1688326129891,0.09783665,30584.0,30583.0,0.3124223]
[1688326161825,0.1166861,30584.0,30583.0,0.3124223]
[1688326162023,0.1166861,30584.0,30583.0,0.267819]
[1688326163016,0.09783665,30584.0,30583.0,0.267819]
[1688326165926,0.09783665,30584.0,30583.0,0.28604869]
[1688326175231,0.09783665,30584.0,30583.0,0.267819]
[1688326175424,0.45863665,30584.0,30583.0,0.267819]
[1688326176028,0.09783665,30584.0,30583.0,0.267819]
[1688326176426,0.09783665,30584.0,30583.0,0.28604869]
[1688326179147,0.45863665,30584.0,30583.0,0.267819]
[1688326179625,0.4774861,30584.0,30583.0,0.267819]
[1688326184744,0.1166861,30584.0,30583.0,0.267819]
[1688326184936,0.4774861,30584.0,30583.0,0.267819]
[1688326187448,0.4839861,30584.0,30583.0,0.267819]
[1688326190443,0.4774861,30584.0,30583.0,0.267819]
[1688326192937,0.45863665,30584.0,30583.0,0.267819]
[1688326194041,0.4774861,30584.0,30583.0,0.267819]
[1688326194244,0.1166861,30584.0,30583.0,0.267819]
[1688326194439,0.4774861,30584.0,30583.0,0.267819]
[1688326202640,0.7256861,30584.0,30583.0,0.267819]
[1688326203069,0.70683665,30584.0,30583.0,0.267819]
[1688326203719,0.70683665,30584.0,30583.0,0.28604869]
[1688326204061,0.70683665,30584.0,30583.0,0.59254869]
[1688326204259,0.45863665,30584.0,30583.0,0.59254869]
[1688326210071,0.46199235,30584.0,30583.0,0.59254869]
[1688326247703,0.10119235,30584.0,30583.0,0.59254869]
[1688326254100,0.34359979,30584.0,30583.0,0.59254869]
[1688326256302,0.34359979,30584.0,30583.0,0.95334869]
[1688326259618,0.42815101,30584.0,30583.0,0.95334869]
[1688326261415,0.34359979,30584.0,30583.0,0.95334869]
[1688326261611,0.4281515,30584.0,30583.0,0.95334869]
[1688326261908,0.34359979,30584.0,30583.0,0.95334869]
[1688326262307,0.4281515,30584.0,30583.0,0.95334869]
[1688326266215,0.01663506,30584.0,30583.0,0.95334869]
[1688326266511,0.39595174,30585.0,30583.0,0.95334869]
[1688326266705,0.10014177,30584.0,30583.0,0.686919]
[1688326266905,0.10014177,30584.0,30583.0,0.935119]
[1688326267305,0.10014177,30584.0,30583.0,0.95334869]
[1688326268305,0.10014177,30584.0,30583.0,0.59254869]
[1688326276617,0.34257614,30584.0,30583.0,0.59254869]
[1688326284119,0.42712673,30584.0,30583.0,0.59254869]
[1688326284324,0.10014062,30584.0,30583.0,0.59254869]
[1688326287638,0.01559003,30584.0,30583.0,0.59254869]
[1688326292946,0.01559003,30584.0,30583.0,0.28604869]
[1688326293650,0.01559003,30584.0,30583.0,0.267819]
[1688326294042,0.01559003,30584.0,30583.0,0.28604869]
[1688326297757,0.01559003,30584.0,30583.0,0.267819]
[1688326298756,0.01559003,30584.0,30583.0,0.28604869]
[1688326300262,0.01559003,30584.0,30583.0,0.58624869]
[1688326306756,0.34274028,30584.0,30583.0,0.58624869]
[1688326307056,0.42729094,30584.0,30583.0,0.58624869]
[1688326314355,0.34274028,30584.0,30583.0,0.58624869]
[1688326317559,0.42729083,30584.0,30583.0,0.58624869]
[1688326321841,0.10014058,30584.0,30583.0,0.58624869]
[1688326324961,0.01559003,30584.0,30583.0,0.58624869]
[1688326329415,0.34278203,30584.0,30583.0,0.58624869]
[1688326329576,0.42733261,30584.0,30583.0,0.58624869]
[1688326331268,0.34278203,30584.0,30583.0,0.58624869]
[1688326331467,0.42733158,30584.0,30583.0,0.58624869]
[1688326331869,0.34278203,30584.0,30583.0,0.58624869]
[1688326336882,0.10014005,30584.0,30583.0,0.58624869]
[1688326338486,0.01559003,30584.0,30583.0,0.58624869]
[1688326338724,0.02209003,30584.0,30583.0,0.019619]
[1688326338996,0.64840803,30584.0,30579.0,0.26681147]
[1688326339245,0.6145,30580.0,30579.0,0.24719047]
[1688326339481,0.019622,30578.0,30576.0,0.065411]
[1688326339687,0.019623,30576.0,30574.0,0.307074]
[1688326339883,0.35138738,30575.0,30574.0,0.307074]
[1688326340101,0.35138738,30575.0,30570.0,0.019627]
[1688326340102,0.35790371,30575.0,30570.0,0.019627]
[1688326340280,0.609,30571.0,30570.0,0.267827]
[1688326340580,0.628627,30571.0,30570.0,0.267827]
[1688326340886,0.64747645,30571.0,30570.0,0.267827]
[1688326341191,0.64747645,30571.0,30570.0,0.286827]
[1688326341584,0.64747645,30571.0,30570.0,0.267827]
[1688326343789,1.00827645,30571.0,30570.0,0.267827]
[1688326349694,0.989427,30571.0,30570.0,0.267827]
[1688326350194,0.989427,30571.0,30570.0,0.265827]
[1688326350487,1.00827645,30571.0,30570.0,0.265827]
[1688326357610,1.00827645,30571.0,30570.0,0.017627]
[1688326359408,0.989427,30571.0,30570.0,0.017627]
[1688326360097,1.00827645,30571.0,30570.0,0.017627]
[1688326363009,0.64747645,30571.0,30570.0,0.017627]
[1688326373903,0.628627,30571.0,30570.0,0.07202251]
[1688326374217,0.628627,30571.0,30570.0,0.017627]
[1688326374416,0.628627,30571.0,30570.0,0.339527]
[1688326374815,0.64747645,30571.0,30570.0,0.339527]
[1688326378397,0.28667645,30571.0,30570.0,0.339527]
[1688326378506,0.64747645,30571.0,30570.0,0.339527]
[1688326382922,0.628627,30571.0,30570.0,0.339527]
[1688326383520,0.64747645,30571.0,30570.0,0.339527]
[1688326388141,0.628627,30571.0,30570.0,0.339527]
[1688326391120,0.64747645,30571.0,30570.0,0.339527]
[1688326393827,0.73206255,30571.0,30570.0,0.339527]
[1688326396951,0.64747645,30571.0,30570.0,0.339527]
[1688326406943,1.00827645,30571.0,30570.0,0.339527]
[1688326411851,1.09286716,30571.0,30570.0,0.339527]
[1688326419352,1.00827645,30571.0,30570.0,0.339527]
[1688326426865,1.09286696,30571.0,30570.0,0.339527]
[1688326431461,0.37126696,30571.0,30570.0,0.339527]
[1688326431667,0.73206696,30571.0,30570.0,0.339527]
[1688326434468,0.64747645,30571.0,30570.0,0.339527]
[1688326441568,0.97896696,30571.0,30569.0,0.00049064]
[1688326441673,0.33279598,30570.0,30569.0,0.02011864]
[1688326441881,0.37127243,30570.0,30569.0,0.02011864]
[1688326442177,0.37127243,30570.0,30569.0,0.00049064]
[1688326442379,0.28667645,30570.0,30569.0,0.00049064]
[1688326444377,0.28667645,30570.0,30569.0,0.02011764]
[1688326444675,0.28667645,30570.0,30569.0,0.00049064]
[1688326445274,0.37127289,30570.0,30569.0,0.00049064]
[1688326456186,1.09287289,30570.0,30569.0,0.00049064]
[1688326456992,1.1261715,30570.0,30569.0,0.00049064]
[1688326457985,1.1261715,30570.0,30566.0,0.321229]
[1688326457986,0.01884945,30569.0,30566.0,0.321229]
[1688326458181,0.608,30567.0,30566.0,0.321229]
[1688326458381,0.627628,30567.0,30566.0,0.321229]
[1688326458575,0.64647745,30567.0,30566.0,0.321229]
[1688326459072,0.64647745,30567.0,30566.0,0.3016]
[1688326461081,0.28567745,30567.0,30566.0,0.3016]
[1688326461385,0.64647745,30567.0,30566.0,0.3016]
[1688326462883,0.64647745,30567.0,30566.0,0.321229]
[1688326465187,0.64647745,30567.0,30566.0,0.3016]
[1688326466791,0.64647745,30567.0,30566.0,0.321229]
[1688326467297,0.627628,30567.0,30566.0,0.321229]
[1688326467981,0.627628,30567.0,30566.0,0.340229]
[1688326469091,0.627628,30567.0,30566.0,0.321229]
[1688326473796,0.266828,30567.0,30566.0,0.321229]
[1688326473997,0.627628,30567.0,30566.0,0.321229]
[1688326475991,0.64647745,30567.0,30566.0,0.321229]
[1688326483706,0.73107488,30567.0,30566.0,0.321229]
[1688326485615,0.71222543,30567.0,30566.0,0.321229]
[1688326487014,0.627628,30567.0,30566.0,0.321229]
[1688326487427,0.608,30567.0,30566.0,0.321229]
[1688326487619,0.609,30567.0,30566.0,0.569429]
[1688326488117,0.609,30567.0,30566.0,0.58765869]
[1688326488518,0.609,30567.0,30566.0,0.588429]
[1688326488713,0.609,30567.0,30566.0,0.62565869]
[1688326490524,0.628628,30567.0,30566.0,0.62565869]
[1688326491321,0.628628,30567.0,30566.0,0.607429]
[1688326492120,0.267828,30567.0,30566.0,0.607429]
[1688326492312,0.267828,30567.0,30566.0,0.62565869]
[1688326493120,0.267828,30567.0,30566.0,0.607429]
[1688326494027,0.267828,30567.0,30566.0,0.62565869]
[1688326495020,0.28667745,30567.0,30566.0,0.607429]
[1688326495220,0.28667745,30567.0,30566.0,0.359229]
[1688326495625,0.28667745,30567.0,30566.0,0.37745869]
[1688326496121,0.267828,30567.0,30566.0,0.37745869]
[1688326497620,0.267828,30567.0,30566.0,0.359229]
[1688326498326,0.28667745,30567.0,30566.0,0.37745869]
[1688326499834,0.28667745,30567.0,30566.0,0.359229]
[1688326500333,0.267828,30567.0,30566.0,0.37745869]
[1688326500930,0.267828,30567.0,30566.0,0.359229]
[1688326501227,0.28667745,30567.0,30566.0,0.359229]
[1688326501923,0.37127266,30567.0,30566.0,0.359229]
[1688326507333,0.73207266,30567.0,30566.0,0.359229]
[1688326509423,0.628628,30567.0,30566.0,0.37745869]
[1688326509626,0.628628,30567.0,30566.0,0.359229]
[1688326511141,0.64747745,30567.0,30566.0,0.359229]
[1688326514238,0.28667745,30567.0,30566.0,0.359229]
[1688326514437,0.609,30567.0,30566.0,0.359229]
[1688326514837,0.609,30567.0,30566.0,0.37745869]
[1688326515438,0.609,30567.0,30566.0,0.37679725]
[1688326515847,0.609,30567.0,30566.0,0.35856756]
[1688326516644,0.2482,30567.0,30566.0,0.35856756]
[1688326516839,0.2482,30567.0,30566.0,0.37679725]
[1688326517045,0.2482,30567.0,30566.0,0.35856756]
[1688326517450,0.2482,30567.0,30566.0,0.37679725]
[1688326518743,0.33279286,30567.0,30566.0,0.37679725]
[1688326520094,0.00049073,30570.0,30566.0,0.62449725]
[1688326520194,0.0845878,30569.0,30568.0,0.3608]
[1688326520340,0.0845878,30569.0,30568.0,0.628628]
[1688326520746,0.0845878,30569.0,30568.0,0.28605769]
[1688326521243,0.0845878,30569.0,30568.0,0.32405769]
[1688326524520,0.24659073,30570.0,30568.0,0.32405769]
[1688326524650,0.24659073,30570.0,30569.0,0.28605669]
[1688326525244,0.24659073,30570.0,30569.0,0.60195669]
[1688326525443,0.24659073,30570.0,30569.0,0.62095669]
[1688326526053,0.24659073,30570.0,30569.0,0.63995669]
[1688326527944,0.24659073,30570.0,30569.0,0.32405669]
[1688326532558,0.24659073,30570.0,30569.0,0.07585669]
[1688326536260,0.24659073,30570.0,30569.0,0.057627]
[1688326537059,0.24659073,30570.0,30569.0,0.07585669]
[1688326538061,0.24659073,30570.0,30569.0,0.057627]
[1688326538262,0.24659073,30570.0,30569.0,0.40485669]
[1688326539464,0.33117942,30570.0,30569.0,0.40485669]
[1688326541961,0.33117942,30570.0,30569.0,0.386627]
[1688326542162,0.33117942,30570.0,30569.0,0.40485669]
[1688326542364,0.33117942,30570.0,30569.0,0.386627]
[1688326542555,0.33117942,30570.0,30569.0,0.633427]
[1688326544658,0.33117942,30570.0,30569.0,0.65165669]
[1688326546466,0.33117942,30570.0,30569.0,0.633427]
[1688326546694,0.33117942,30570.0,30569.0,0.65165669]
[1688326546963,0.24659073,30570.0,30569.0,0.65165669]
[1688326549954,0.24659073,30570.0,30569.0,0.65305669]
[1688326550067,0.24659073,30570.0,30569.0,0.634827]
[1688326550263,0.24659073,30570.0,30569.0,0.65305669]
[1688326551966,0.24659073,30570.0,30569.0,0.305827]
[1688326552300,0.26621673,30570.0,30569.0,0.057627]
[1688326552460,0.28506618,30570.0,30569.0,0.057627]
[1688326553272,0.28506618,30570.0,30569.0,0.038627]
[1688326553470,0.28506618,30570.0,30569.0,0.019627]
[1688326554473,0.36965802,30570.0,30569.0,0.019627]
[1688326560663,0.39566746,30570.0,30569.0,0.019627]
[1688326564468,0.31107562,30570.0,30569.0,0.019627]
[1688326565876,0.39567334,30570.0,30569.0,0.019627]
[1688326566064,0.31107562,30570.0,30569.0,0.019627]
[1688326568081,1.03267562,30570.0,30569.0,0.019627]
[1688326569613,1.11727264,30570.0,30569.0,0.019627]
[1688326570709,1.23516769,30570.0,30569.0,0.019627]
[1688326577383,1.23516769,30570.0,30568.0,0.019628]
[1688326577384,1.23516769,30570.0,30566.0,0.04907]
[1688326577615,0.8549,30567.0,30563.0,0.34282073]
[1688326577882,0.609,30564.0,30563.0,0.02012173]
[1688326578072,0.62863,30564.0,30563.0,0.02012173]
[1688326578328,0.64747945,30564.0,30563.0,0.02012173]
[1688326578977,0.64747945,30564.0,30563.0,0.00049073]
[1688326579879,0.64747945,30564.0,30560.0,0.019633]
[1688326579880,0.2482,30561.0,30560.0,0.019633]
[1688326580184,0.875832,30561.0,30560.0,0.02239451]
[1688326580383,0.875832,30561.0,30560.0,0.019633]
[1688326580585,0.89468145,30561.0,30560.0,0.019633]
[1688326580781,0.89468145,30561.0,30560.0,0.038633]
[1688326580990,0.89468145,30561.0,30560.0,0.057633]
[1688326582486,0.89468145,30561.0,30560.0,0.038]
[1688326584907,0.89468145,30561.0,30560.0,0.057633]
[1688326585183,0.89468145,30561.0,30560.0,0.06039508]
[1688326585378,0.89468145,30561.0,30560.0,0.05499508]
[1688326586288,0.89468145,30561.0,30560.0,0.03536208]
[1688326586481,0.89468145,30561.0,30560.0,0.05499508]
[1688326589087,1.25548145,30561.0,30560.0,0.05499508]
[1688326589360,1.3733765,30561.0,30560.0,0.05499508]
[1688326590176,1.3733765,30561.0,30560.0,0.05486188]
[1688326590582,1.25548145,30561.0,30560.0,0.05486188]
[1688326592992,0.53388145,30561.0,30560.0,0.05486188]
[1688326593193,1.25548145,30561.0,30560.0,0.05486188]
[1688326603087,0.53388145,30561.0,30560.0,0.05486188]
[1688326603286,1.25548145,30561.0,30560.0,0.05486188]
[1688326610181,0.53388145,30561.0,30560.0,0.05486188]
[1688326610399,1.25548145,30561.0,30560.0,0.06886188]
[1688326629520,1.34009835,30561.0,30560.0,0.06886188]
[1688326629777,1.4579934,30561.0,30560.0,0.06886188]
[1688326637009,1.3733765,30561.0,30560.0,0.06886188]
[1688326638634,1.0125765,30561.0,30560.0,0.06886188]
[1688326639728,0.89468145,30561.0,30560.0,0.06886188]
[1688326642933,0.53388145,30561.0,30560.0,0.06886188]
[1688326643118,0.89468145,30561.0,30560.0,0.06886188]
[1688326643325,1.0125765,30561.0,30560.0,0.06886188]
[1688326644536,1.09719296,30561.0,30560.0,0.06886188]
[1688326650138,0.73639296,30561.0,30560.0,0.06886188]
[1688326650337,1.09719296,30561.0,30560.0,0.06886188]
[1688326652129,1.0125765,30561.0,30560.0,0.06886188]
[1688326654445,0.6517765,30561.0,30560.0,0.06886188]
[1688326654643,1.0125765,30561.0,30560.0,0.06886188]
[1688326656949,1.0125765,30561.0,30560.0,0.04922888]
[1688326657142,1.0111765,30561.0,30559.0,0.350234]
[1688326657348,0.49832705,30561.0,30560.0,0.00342468]
[1688326657647,0.49832705,30561.0,30560.0,0.00323369]
[1688326657648,1.0759458,30561.0,30560.0,0.00323369]
[1688326657837,1.09479525,30561.0,30560.0,0.00323369]
[1688326658039,1.0101765,30561.0,30558.0,0.049086]
[1688326658240,0.4964,30559.0,30558.0,0.049086]
[1688326658441,0.53488345,30559.0,30558.0,0.049086]
[1688326658946,0.84938345,30559.0,30558.0,0.049086]
[1688326659649,0.93400371,30559.0,30558.0,0.049086]
[1688326661040,0.93400371,30559.0,30558.0,0.360086]
[1688326661525,0.84938345,30559.0,30558.0,0.360086]
[1688326661748,0.82974945,30559.0,30558.0,0.360086]
[1688326662148,0.9143675,30559.0,30558.0,0.360086]
[1688326662617,0.58154945,30559.0,30558.0,0.360086]
[1688326662749,0.66616749,30559.0,30558.0,0.360086]
[1688326662948,0.58154945,30559.0,30558.0,0.360086]
[1688326663553,0.6661674,30559.0,30558.0,0.360086]
[1688326664055,1.0269674,30559.0,30558.0,0.360086]
[1688326664663,1.0269674,30559.0,30558.0,0.36335481]
[1688326666153,1.02696719,30559.0,30558.0,0.36335481]
[1688326667069,0.94234945,30559.0,30558.0,0.36335481]
[1688326667456,0.609,30559.0,30558.0,0.36335481]
[1688326670156,0.29287147,30559.0,30558.0,0.36335481]
[1688326671962,0.27402202,30559.0,30558.0,0.36335481]
[1688326675781,0.27402202,30559.0,30558.0,0.3815845]
[1688326676464,0.27402202,30559.0,30558.0,0.36335481]
[1688326678097,0.27402202,30559.0,30558.0,0.3815845]
[1688326678773,0.27402202,30559.0,30558.0,0.3788845]
[1688326679869,0.2482,30559.0,30558.0,0.3788845]
[1688326681970,0.2482,30559.0,30558.0,0.36065481]
[1688326682355,0.2482,30559.0,30558.0,0.3788845]
[1688326684169,0.2482,30559.0,30558.0,0.36065481]
[1688326686654,0.2482,30559.0,30558.0,0.3788845]
[1688326686872,0.2482,30559.0,30558.0,0.36065481]
[1688326689270,0.2482,30559.0,30558.0,0.38665804]
[1688326691267,0.2482,30559.0,30558.0,0.40488773]
[1688326696679,0.2482,30559.0,30558.0,0.38665804]
[1688326696879,0.2482,30559.0,30558.0,0.40488773]
[1688326697770,0.2482,30559.0,30558.0,0.3788845]
[1688326700279,0.2482,30559.0,30558.0,0.36065481]
[1688326701177,0.2482,30559.0,30558.0,0.3788845]
[1688326703380,0.5671,30559.0,30558.0,0.36065481]
[1688326704580,0.5671,30559.0,30558.0,0.3788845]
[1688326707076,0.5671,30559.0,30558.0,0.36065481]
[1688326707682,0.5671,30559.0,30558.0,0.3788845]
[1688326708776,0.5671,30559.0,30558.0,0.36065481]
[1688326709173,0.5671,30559.0,30558.0,0.3788845]
[1688326709584,0.5671,30559.0,30558.0,0.36065481]
[1688326710779,0.5671,30559.0,30558.0,0.3788845]
[1688326715683,0.5671,30559.0,30558.0,0.36065481]
[1688326715884,0.5671,30559.0,30558.0,0.3788845]
[1688326716084,0.5671,30559.0,30558.0,0.36065481]
[1688326718896,0.5671,30559.0,30558.0,0.3788845]
[1688326719086,0.5671,30559.0,30558.0,0.36065481]
[1688326719689,0.65171514,30559.0,30558.0,0.36065481]
[1688326719894,0.67134914,30559.0,30558.0,0.36065481]
[1688326721198,0.65171514,30559.0,30558.0,0.36065481]
[1688326721498,0.67134814,30559.0,30558.0,0.36065481]
[1688326724803,0.586733,30559.0,30558.0,0.36065481]
[1688326727696,0.5671,30559.0,30558.0,0.36065481]
[1688326728409,0.586732,30559.0,30558.0,0.36065481]
[1688326728707,0.5671,30559.0,30558.0,0.36065481]
[1688326728910,0.586732,30559.0,30558.0,0.36065481]
[1688326729808,0.5671,30559.0,30558.0,0.36065481]
[1688326732898,0.5671,30559.0,30558.0,0.3788845]
[1688326733113,0.5671,30559.0,30558.0,0.36065481]
[1688326733410,0.5671,30559.0,30558.0,0.3788845]
[1688326734438,0.2482,30559.0,30558.0,0.7396845]
[1688326735506,0.2482,30561.0,30558.0,0.96815481]
[1688326735700,0.2482,30561.0,30560.0,0.2482]
[1688326736015,0.2482,30561.0,30560.0,0.27110924]
[1688326736196,0.2482,30561.0,30560.0,0.28933893]
[1688326742517,0.2482,30561.0,30560.0,0.04113893]
[1688326742711,0.2482,30561.0,30560.0,0.40193893]
[1688326748607,0.2482,30561.0,30560.0,0.428311]
[1688326752516,0.2482,30561.0,30560.0,0.675071]
[1688326757826,0.2482,30561.0,30560.0,0.314271]
[1688326758231,0.26704945,30561.0,30560.0,0.26966924]
[1688326758522,0.26704945,30561.0,30560.0,0.28789893]
[1688326759020,0.26704945,30561.0,30560.0,0.28739893]
[1688326759220,0.2482,30561.0,30560.0,0.28739893]
[1688326760514,0.267832,30561.0,30560.0,0.28739893]
[1688326760821,0.881932,30561.0,30560.0,0.00328011]
[1688326761063,0.881932,30561.0,30558.0,0.019633]
[1688326761221,0.2482,30559.0,30558.0,0.019633]
[1688326761424,0.28668245,30559.0,30558.0,0.019633]
[1688326762421,0.28668245,30559.0,30557.0,0.06593083]
[1688326762716,0.62664945,30558.0,30557.0,0.06593083]
[1688326762917,0.64628345,30558.0,30557.0,0.06593083]
[1688326765015,0.64628345,30558.0,30557.0,0.00049083]
[1688326766745,0.64628345,30558.0,30557.0,0.02012483]
[1688326770150,0.627434,30558.0,30557.0,0.02012483]
[1688326771729,0.6078,30558.0,30557.0,0.02012483]
[1688326772527,0.6078,30558.0,30557.0,0.32592483]
[1688326772730,0.6078,30558.0,30557.0,0.34415452]
[1688326773041,0.6078,30558.0,30557.0,0.32592483]
[1688326773423,0.6078,30558.0,30557.0,0.34415452]
[1688326773627,0.6078,30558.0,30557.0,0.32592483]
[1688326775218,0.62664945,30558.0,30557.0,0.32592483]
[1688326776128,0.26584945,30558.0,30557.0,0.32592483]
[1688326776532,0.247,30558.0,30557.0,0.32592483]
[1688326777135,0.28548345,30558.0,30557.0,0.32592483]
[1688326778335,0.28548345,30558.0,30557.0,0.02012483]
[1688326782899,0.64628345,30558.0,30557.0,0.02012483]
[1688326785737,0.62664945,30558.0,30557.0,0.02012483]
[1688326785926,0.6078,30558.0,30557.0,0.02012483]
[1688326788531,0.62664945,30558.0,30557.0,0.02012483]
[1688326789336,0.62664945,30558.0,30557.0,0.03835452]
[1688326790039,0.62664945,30558.0,30557.0,0.02012483]
[1688326790936,0.26584945,30558.0,30557.0,0.02012483]
[1688326791135,0.62664945,30558.0,30557.0,0.02012483]
[1688326791942,0.62664945,30558.0,30557.0,0.26832483]
[1688326791943,0.247,30558.0,30557.0,0.26832483]
[1688326792439,0.247,30558.0,30557.0,0.28655452]
[1688326792734,0.2482,30559.0,30557.0,0.28655452]
[1688326792836,0.2482,30559.0,30558.0,0.2477]
[1688326793041,0.2482,30559.0,30558.0,0.28556369]
[1688326793440,0.2482,30559.0,30558.0,0.58616369]
[1688326803653,0.33281954,30559.0,30558.0,0.58616369]
[1688326809854,0.2482,30559.0,30558.0,0.58616369]
[1688326812453,0.2459,30559.0,30558.0,0.58666369]
[1688326813425,0.2482,30559.0,30558.0,0.58596369]
[1688326824869,0.33281888,30559.0,30558.0,0.58596369]
[1688326825263,0.3052,30562.0,30558.0,0.94676369]
[1688326825607,0.08461314,30561.0,30560.0,0.019632]
[1688326825764,0.08461314,30561.0,30560.0,0.267832]
[1688326826158,0.08461314,30561.0,30560.0,0.28606169]
[1688326831273,0.2471,30563.0,30560.0,0.28606169]
[1688326831471,0.08461126,30562.0,30560.0,0.019632]
[1688326831672,0.2471,30563.0,30561.0,0.26642969]
[1688326831972,0.08461128,30562.0,30561.0,0.049079]
[1688326832162,0.08461128,30562.0,30561.0,0.604779]
[1688326832362,0.2471,30563.0,30561.0,0.604779]
[1688326832562,0.68179083,30564.0,30563.0,0.01963]
[1688326832763,0.76640175,30564.0,30563.0,0.26783]
[1688326833771,0.40560175,30564.0,30563.0,0.26783]
[1688326833972,0.40560175,30564.0,30563.0,0.28605969]
[1688326834312,0.76640175,30564.0,30563.0,0.28605969]
[1688326838678,0.44590175,30564.0,30563.0,0.28605969]
[1688326839107,0.46553175,30564.0,30563.0,0.28605969]
[1688326842475,0.71253175,30564.0,30563.0,0.03785969]
[1688326844173,0.10473175,30564.0,30563.0,0.28605969]
[1688326844371,0.46553175,30564.0,30563.0,0.28605969]
[1688326844777,0.10473175,30564.0,30563.0,0.28605969]
[1688326844969,0.46553175,30564.0,30563.0,0.28605969]
[1688326853082,0.46553175,30564.0,30563.0,0.26783]
[1688326853974,0.46553175,30564.0,30563.0,0.28605969]
[1688326855988,0.46553175,30564.0,30563.0,0.26783]
[1688326856288,0.46553175,30564.0,30563.0,0.28605969]
[1688326858186,0.10473175,30564.0,30563.0,0.28605969]
[1688326858582,0.46553175,30564.0,30563.0,0.28605969]
[1688326858779,0.10473175,30564.0,30563.0,0.28605969]
[1688326859180,0.46553175,30564.0,30563.0,0.28605969]
[1688326862087,0.44590175,30564.0,30563.0,0.28605969]
[1688326862302,0.44589874,30564.0,30563.0,0.28605969]
[1688326865291,0.08509874,30564.0,30563.0,0.28605969]
[1688326869992,0.00049083,30564.0,30563.0,0.28605969]
[1688326872143,0.32723759,30567.0,30565.0,0.019629]
[1688326872301,0.32723759,30567.0,30566.0,0.2482]
[1688326872500,0.32723759,30568.0,30566.0,0.267829]
[1688326872799,0.32723759,30568.0,30567.0,0.3208252]
[1688326873093,0.41183556,30568.0,30567.0,0.3404532]
[1688326873390,0.32723759,30568.0,30567.0,0.3404532]
[1688326873589,0.68803759,30569.0,30567.0,0.3404532]
[1688326873797,0.68803759,30569.0,30568.0,0.2477]
[1688326873996,0.68803759,30569.0,30568.0,0.28555669]
[1688326873997,0.77263543,30569.0,30568.0,0.28555669]
[1688326875389,0.68803759,30569.0,30568.0,0.28555669]
[1688326877287,0.77263563,30569.0,30568.0,0.28555669]
[1688326877589,0.44539804,30569.0,30568.0,0.28555669]
[1688326879902,0.08459804,30569.0,30568.0,0.28555669]